[Event "Early-Titled-Tuesday-Blitz-October-03-2023"]
[Site "Chess.com"]
[Date "2023.10.03"]
[Round "9"]
[White "kleinebeer98"]
[Black "vasblesk"]
[Result "0-1"]
[WhiteElo "2808"]
[BlackElo "2736"]
[TimeControl "180+1"]
[EndTime "9:45:39 PDT"]
[Termination "vasblesk won by resignation"]

1. e4 {[%clk 0:03:00.9]} 1... d5 {[%clk 0:02:58.3]} 2. exd5 {[%clk 0:03:01]}
2... Qxd5 {[%clk 0:02:58.7]} 3. Nc3 {[%clk 0:03:01.8]} 3... Qa5 {[%clk
0:02:58.4]} 4. b4 {[%clk 0:03:02.1]} 4... Qxb4 {[%clk 0:02:56.4]} 5. Rb1 {[%clk
0:03:02.7]} 5... Qd6 {[%clk 0:02:52.8]} 6. Nf3 {[%clk 0:03:03.2]} 6... c6 {[%clk
0:02:51.6]} 7. d4 {[%clk 0:03:03]} 7... Nf6 {[%clk 0:02:46]} 8. Bc4 {[%clk
0:03:03.7]} 8... b6 {[%clk 0:02:44.8]} 9. Ne5 {[%clk 0:03:01.1]} 9... e6 {[%clk
0:02:45.4]} 10. Bf4 {[%clk 0:03:01.9]} 10... Qd8 {[%clk 0:02:43.5]} 11. Qf3
{[%clk 0:03:02.7]} 11... Bb7 {[%clk 0:02:41.4]} 12. O-O {[%clk 0:03:01.9]} 12...
Be7 {[%clk 0:02:37.1]} 13. Rfe1 {[%clk 0:02:56.8]} 13... O-O {[%clk 0:02:31.4]}
14. Nxf7 {[%clk 0:02:57.2]} 14... Rxf7 {[%clk 0:02:10.6]} 15. Bxe6 {[%clk
0:02:57.6]} 15... Nbd7 {[%clk 0:02:08.7]} 16. Re2 {[%clk 0:02:48.8]} 16... Nf8
{[%clk 0:02:07.5]} 17. Bxf7+ {[%clk 0:02:49]} 17... Kxf7 {[%clk 0:02:08.4]} 18.
Rbe1 {[%clk 0:02:49.4]} 18... Ng6 {[%clk 0:02:00]} 19. Bg5 {[%clk 0:02:49.8]}
19... Qd7 {[%clk 0:01:54.7]} 20. d5 {[%clk 0:02:50.2]} 20... cxd5 {[%clk
0:01:52.3]} 21. h4 {[%clk 0:02:22.7]} 21... d4 {[%clk 0:01:36.2]} 22. Ne4 {[%clk
0:02:23.3]} 22... Ne5 {[%clk 0:01:23]} 23. Qf4 {[%clk 0:02:12.7]} 23... Ng6
{[%clk 0:01:21.9]} 24. Qf3 {[%clk 0:02:07.9]} 24... Kg8 {[%clk 0:00:43]} 25.
Bxf6 {[%clk 0:02:03.3]} 25... gxf6 {[%clk 0:00:19.6]} 26. h5 {[%clk 0:02:02]}
26... Ne5 {[%clk 0:00:18.8]} 27. Nxf6+ {[%clk 0:02:02.5]} 27... Bxf6 {[%clk
0:00:18.7]} 28. Qxf6 {[%clk 0:02:03.4]} 28... Qg4 {[%clk 0:00:18.7]} 29. f4
{[%clk 0:01:22]} 29... Nf3+ {[%clk 0:00:18.3]} 30. Kf1 {[%clk 0:01:22.7]} 30...
Nxe1 {[%clk 0:00:12.4]} 31. Re7 {[%clk 0:01:22.9]} 31... Rf8 {[%clk 0:00:08.8]}
32. Qe5 {[%clk 0:01:17.1]} 32... Bxg2+ {[%clk 0:00:06.5]} 33. Kxe1 {[%clk
0:01:16.8]} 33... Qg3+ {[%clk 0:00:07.2]} 34. Kd1 {[%clk 0:01:16.7]} 34... Bf3+
{[%clk 0:00:07.7]} 35. Kc1 {[%clk 0:01:16.7]} 35... Qxf4+ {[%clk 0:00:08.4]} 36.
Qxf4 {[%clk 0:01:16.9]} 36... Rxf4 {[%clk 0:00:09.3]} 37. Rxa7 {[%clk
0:01:17.2]} 37... Rf6 {[%clk 0:00:10]} 38. Rd7 {[%clk 0:01:16.1]} 38... Bxh5
{[%clk 0:00:10.3]} 39. Rxd4 {[%clk 0:01:15.4]} 39... Bg6 {[%clk 0:00:11.2]} 40.
a4 {[%clk 0:01:14.2]} 40... Kg7 {[%clk 0:00:12.1]} 41. Rd7+ {[%clk 0:01:13.7]}
41... Bf7 {[%clk 0:00:11.8]} 42. Kb2 {[%clk 0:01:11.9]} 42... h5 {[%clk
0:00:12.3]} 43. Rd4 {[%clk 0:01:10.6]} 43... Rh6 {[%clk 0:00:12.7]} 44. Rh4
{[%clk 0:01:10.2]} 44... Kf6 {[%clk 0:00:13.4]} 45. a5 {[%clk 0:01:08.1]} 45...
bxa5 {[%clk 0:00:13.3]} 46. Ka3 {[%clk 0:01:08.5]} 46... Kg5 {[%clk 0:00:13.2]}
47. Rh2 {[%clk 0:01:06.9]} 47... Be8 {[%clk 0:00:13.8]} 48. Rg2+ {[%clk
0:01:07.4]} 48... Kf4 {[%clk 0:00:13.6]} 49. Rf2+ {[%clk 0:01:07.6]} 49... Kg3
{[%clk 0:00:14.1]} 50. Rf6 {[%clk 0:01:08]} 50... Rxf6 {[%clk 0:00:14.1]} 0-1

[Event "Early-Titled-Tuesday-Blitz-October-03-2023"]
[Site "Chess.com"]
[Date "2023.10.03"]
[Round "9"]
[White "aistrel"]
[Black "bylavochka"]
[Result "0-1"]
[WhiteElo "2531"]
[BlackElo "2367"]
[TimeControl "180+1"]
[EndTime "9:45:39 PDT"]
[Termination "bylavochka won by checkmate"]

1. f3 {[%clk 0:03:00.9]} 1... e5 {[%clk 0:02:53.5]} 2. g3 {[%clk 0:02:59.8]}
2... d5 {[%clk 0:02:53.2]} 3. Nh3 {[%clk 0:03:00.4]} 3... f5 {[%clk 0:02:49.9]}
4. Nf2 {[%clk 0:03:01.3]} 4... Nf6 {[%clk 0:02:50.2]} 5. e3 {[%clk 0:03:01.1]}
5... Bd6 {[%clk 0:02:46.1]} 6. d4 {[%clk 0:03:01]} 6... O-O {[%clk 0:02:45.6]}
7. Bg2 {[%clk 0:03:00.2]} 7... exd4 {[%clk 0:02:36]} 8. exd4 {[%clk 0:03:00.4]}
8... Re8+ {[%clk 0:02:32.3]} 9. Kf1 {[%clk 0:03:00.9]} 9... c5 {[%clk 0:02:24]}
10. dxc5 {[%clk 0:02:59.5]} 10... Bxc5 {[%clk 0:02:22.7]} 11. Nd3 {[%clk
0:03:00.4]} 11... Bb6 {[%clk 0:02:12.9]} 12. Nc3 {[%clk 0:02:59.8]} 12... Nc6
{[%clk 0:02:05.6]} 13. Bg5 {[%clk 0:02:42.3]} 13... h6 {[%clk 0:01:45.1]} 14.
Bxf6 {[%clk 0:02:41.6]} 14... Qxf6 {[%clk 0:01:38.5]} 15. Nxd5 {[%clk
0:02:40.7]} 15... Qd4 {[%clk 0:01:29.2]} 16. Nxb6 {[%clk 0:02:39]} 16... Qxb6
{[%clk 0:01:20.5]} 17. Qd2 {[%clk 0:02:38.3]} 17... Be6 {[%clk 0:01:05.9]} 18.
Re1 {[%clk 0:02:38.6]} 18... Bc4 {[%clk 0:00:39.8]} 19. b3 {[%clk 0:01:57.5]}
19... Rxe1+ {[%clk 0:00:29.4]} 20. Kxe1 {[%clk 0:01:54.3]} 20... Re8+ {[%clk
0:00:29.3]} 21. Kd1 {[%clk 0:01:50.6]} 21... Bxd3 {[%clk 0:00:18.8]} 22. cxd3
{[%clk 0:01:51.5]} 22... Nb4 {[%clk 0:00:11.4]} 23. f4 {[%clk 0:01:50.6]} 23...
Rd8 {[%clk 0:00:09.7]} 24. Bf1 {[%clk 0:01:25.8]} 24... Qd4 {[%clk 0:00:09.6]}
25. Ke1 {[%clk 0:01:03.6]} 25... Re8+ {[%clk 0:00:04.9]} 26. Kd1 {[%clk
0:01:03.2]} 26... Nd5 {[%clk 0:00:04.2]} 27. Kc2 {[%clk 0:00:55.2]} 27... Rc8+
{[%clk 0:00:03.1]} 28. Kd1 {[%clk 0:00:43.4]} 28... Nc3+ {[%clk 0:00:02.8]} 29.
Kc1 {[%clk 0:00:38]} 29... Ne4+ {[%clk 0:00:02.6]} 30. Qc2 {[%clk 0:00:38.6]}
30... Rxc2+ {[%clk 0:00:02.5]} 31. Kxc2 {[%clk 0:00:39.5]} 31... Qc3+ {[%clk
0:00:03.1]} 32. Kb1 {[%clk 0:00:38.8]} 32... Nd2# {[%clk 0:00:03]} 0-1

[Event "Early-Titled-Tuesday-Blitz-October-03-2023"]
[Site "Chess.com"]
[Date "2023.10.03"]
[Round "9"]
[White "AEMEffi"]
[Black "MajorCoast"]
[Result "1-0"]
[WhiteElo "2392"]
[BlackElo "2261"]
[TimeControl "180+1"]
[EndTime "9:45:40 PDT"]
[Termination "AEMEffi won by checkmate"]

1. d4 {[%clk 0:03:00]} 1... d5 {[%clk 0:02:59.8]} 2. c4 {[%clk 0:03:00.9]} 2...
e6 {[%clk 0:03:00.3]} 3. Nc3 {[%clk 0:03:00.6]} 3... h6 {[%clk 0:03:00.7]} 4.
cxd5 {[%clk 0:02:59.3]} 4... exd5 {[%clk 0:03:01.6]} 5. Bf4 {[%clk 0:02:59.2]}
5... Bd6 {[%clk 0:03:02.1]} 6. Bg3 {[%clk 0:02:58.6]} 6... Nf6 {[%clk
0:03:02.4]} 7. e3 {[%clk 0:02:58.5]} 7... c6 {[%clk 0:03:02.4]} 8. Bd3 {[%clk
0:02:58.5]} 8... O-O {[%clk 0:02:58.7]} 9. Nge2 {[%clk 0:02:57.3]} 9... Re8
{[%clk 0:02:56.4]} 10. Qc2 {[%clk 0:02:54.7]} 10... a5 {[%clk 0:02:54.5]} 11.
Bxd6 {[%clk 0:02:47.8]} 11... Qxd6 {[%clk 0:02:54]} 12. h3 {[%clk 0:02:48.7]}
12... Na6 {[%clk 0:02:51.4]} 13. a3 {[%clk 0:02:48.3]} 13... Nc7 {[%clk
0:02:52]} 14. O-O {[%clk 0:02:35.6]} 14... b5 {[%clk 0:02:37.8]} 15. Ng3 {[%clk
0:02:32.5]} 15... b4 {[%clk 0:02:32.4]} 16. Na4 {[%clk 0:02:27.7]} 16... Ba6
{[%clk 0:02:23.2]} 17. Nc5 {[%clk 0:02:15]} 17... Bxd3 {[%clk 0:02:19.8]} 18.
Qxd3 {[%clk 0:02:15.9]} 18... bxa3 {[%clk 0:02:15.3]} 19. bxa3 {[%clk
0:01:59.3]} 19... Rab8 {[%clk 0:02:06.4]} 20. Qd2 {[%clk 0:01:45.4]} 20... Ne6
{[%clk 0:01:49.9]} 21. Nxe6 {[%clk 0:01:32.5]} 21... Rxe6 {[%clk 0:01:43.7]} 22.
Qxa5 {[%clk 0:01:32.3]} 22... Ne4 {[%clk 0:01:00.7]} 23. Nxe4 {[%clk 0:01:27.4]}
23... Rxe4 {[%clk 0:01:00.9]} 24. Rfb1 {[%clk 0:01:25.8]} 24... Rxb1+ {[%clk
0:00:44.1]} 25. Rxb1 {[%clk 0:01:26.7]} 25... Qg6 {[%clk 0:00:44.1]} 26. Qd8+
{[%clk 0:01:24.6]} 26... Kh7 {[%clk 0:00:43.7]} 27. Rb8 {[%clk 0:01:23.4]} 27...
Qh5 {[%clk 0:00:30.9]} 28. Qh8+ {[%clk 0:01:13.1]} 28... Kg6 {[%clk 0:00:30.5]}
29. Rg8 {[%clk 0:01:12]} 29... Qd1+ {[%clk 0:00:14.9]} 30. Kh2 {[%clk
0:01:10.7]} 30... Re6 {[%clk 0:00:11.9]} 31. Qxg7+ {[%clk 0:01:04.7]} 31... Kf5
{[%clk 0:00:12.2]} 32. Qxf7+ {[%clk 0:00:53.7]} 32... Rf6 {[%clk 0:00:12.3]} 33.
g4+ {[%clk 0:00:46]} 33... Ke4 {[%clk 0:00:09.5]} 34. Qxf6 {[%clk 0:00:44.8]}
34... Qf1 {[%clk 0:00:08.8]} 35. Qf5# {[%clk 0:00:43.6]} 1-0

[Event "Early-Titled-Tuesday-Blitz-October-03-2023"]
[Site "Chess.com"]
[Date "2023.10.03"]
[Round "9"]
[White "Beca95"]
[Black "Zablotsky"]
[Result "1-0"]
[WhiteElo "3006"]
[BlackElo "2737"]
[TimeControl "180+1"]
[EndTime "9:45:41 PDT"]
[Termination "Beca95 won by resignation"]

1. e4 {[%clk 0:02:54.5]} 1... d6 {[%clk 0:03:00]} 2. d4 {[%clk 0:02:53.4]} 2...
Nf6 {[%clk 0:03:00.5]} 3. Nc3 {[%clk 0:02:53.8]} 3... e5 {[%clk 0:03:01.4]} 4.
dxe5 {[%clk 0:02:53.8]} 4... dxe5 {[%clk 0:03:01.7]} 5. Qxd8+ {[%clk 0:02:54.5]}
5... Kxd8 {[%clk 0:03:02.6]} 6. f4 {[%clk 0:02:53.8]} 6... Bb4 {[%clk
0:03:01.9]} 7. Bd3 {[%clk 0:02:52.9]} 7... Nc6 {[%clk 0:02:54.5]} 8. Nf3 {[%clk
0:02:52.2]} 8... Re8 {[%clk 0:02:54.5]} 9. fxe5 {[%clk 0:02:42.9]} 9... Nxe5
{[%clk 0:02:51.5]} 10. Bf4 {[%clk 0:02:43.1]} 10... Nxd3+ {[%clk 0:02:45.2]} 11.
cxd3 {[%clk 0:02:42.8]} 11... h6 {[%clk 0:02:45.3]} 12. O-O-O {[%clk 0:02:42.2]}
12... Be6 {[%clk 0:02:34.7]} 13. Be5 {[%clk 0:02:41.3]} 13... Ke7 {[%clk
0:02:28.7]} 14. a3 {[%clk 0:02:40.1]} 14... Ba5 {[%clk 0:02:27.1]} 15. h3 {[%clk
0:02:39.9]} 15... Rad8 {[%clk 0:02:26.3]} 16. g4 {[%clk 0:02:36.1]} 16... c6
{[%clk 0:02:14.8]} 17. Nd4 {[%clk 0:02:21.4]} 17... g6 {[%clk 0:02:02.2]} 18.
Nxe6 {[%clk 0:01:40.8]} 18... Kxe6 {[%clk 0:02:01.1]} 19. Bxf6 {[%clk
0:01:41.3]} 19... Kxf6 {[%clk 0:02:00.8]} 20. Rhf1+ {[%clk 0:01:42.2]} 20... Kg7
{[%clk 0:01:54.5]} 21. Rf3 {[%clk 0:01:42]} 21... Rd7 {[%clk 0:01:54.4]} 22.
Rdf1 {[%clk 0:01:41.7]} 22... Bd8 {[%clk 0:01:48.6]} 23. Kc2 {[%clk 0:01:41.4]}
23... Re6 {[%clk 0:01:47]} 24. b4 {[%clk 0:01:40.7]} 24... Rf6 {[%clk 0:01:45]}
25. Na4 {[%clk 0:01:40.7]} 25... b6 {[%clk 0:01:42.3]} 26. Nb2 {[%clk
0:01:40.7]} 26... Rxf3 {[%clk 0:01:40.8]} 27. Rxf3 {[%clk 0:01:41.3]} 27... Bf6
{[%clk 0:01:40.7]} 28. Nc4 {[%clk 0:01:41.4]} 28... Bd4 {[%clk 0:01:41.1]} 29.
a4 {[%clk 0:01:39.5]} 29... Re7 {[%clk 0:01:39]} 30. Kb3 {[%clk 0:01:38.7]}
30... Rd7 {[%clk 0:01:31.8]} 31. b5 {[%clk 0:01:38.7]} 31... cxb5 {[%clk
0:01:26.5]} 32. axb5 {[%clk 0:01:39.6]} 32... Kf8 {[%clk 0:01:25.8]} 33. h4
{[%clk 0:01:27.5]} 33... Ke7 {[%clk 0:01:25.6]} 34. h5 {[%clk 0:01:26.6]} 34...
Rd8 {[%clk 0:01:17.1]} 35. Rh3 {[%clk 0:01:22.6]} 35... Rg8 {[%clk 0:01:13.3]}
36. Nd2 {[%clk 0:01:10.2]} 36... gxh5 {[%clk 0:01:12]} 37. gxh5 {[%clk
0:01:06.9]} 37... Rg2 {[%clk 0:01:08.4]} 38. Nf3 {[%clk 0:01:05]} 38... Bf6
{[%clk 0:01:06.3]} 39. d4 {[%clk 0:01:04.6]} 39... Re2 {[%clk 0:01:03.9]} 40. e5
{[%clk 0:01:04.1]} 40... Bg7 {[%clk 0:01:01.6]} 41. Kc4 {[%clk 0:01:04.3]} 41...
Kd7 {[%clk 0:01:00]} 42. Rg3 {[%clk 0:01:03]} 42... Bf8 {[%clk 0:00:58.3]} 43.
Nh4 {[%clk 0:00:55.3]} 43... Be7 {[%clk 0:00:54.1]} 44. Nf5 {[%clk 0:00:50]}
44... Bg5 {[%clk 0:00:54.1]} 45. Ra3 {[%clk 0:00:49.9]} 45... Rc2+ {[%clk
0:00:51.3]} 46. Kd5 {[%clk 0:00:50]} 46... Rc7 {[%clk 0:00:49.6]} 47. Ra2 {[%clk
0:00:49.6]} 47... Kc8 {[%clk 0:00:46.7]} 48. Nd6+ {[%clk 0:00:49.3]} 48... Kb8
{[%clk 0:00:41.6]} 49. Rf2 {[%clk 0:00:48.3]} 49... a6 {[%clk 0:00:39]} 50. bxa6
{[%clk 0:00:47.9]} 50... Ka7 {[%clk 0:00:39.1]} 51. Nb5+ {[%clk 0:00:48.1]} 1-0

[Event "Early-Titled-Tuesday-Blitz-October-03-2023"]
[Site "Chess.com"]
[Date "2023.10.03"]
[Round "9"]
[White "Tsyhanchuk_Stanislav"]
[Black "HajiyevKanan"]
[Result "0-1"]
[WhiteElo "2437"]
[BlackElo "2536"]
[TimeControl "180+1"]
[EndTime "9:45:42 PDT"]
[Termination "HajiyevKanan won by checkmate"]

1. e4 {[%clk 0:03:00.9]} 1... c6 {[%clk 0:02:44.5]} 2. d4 {[%clk 0:02:59.7]}
2... d5 {[%clk 0:02:45.4]} 3. e5 {[%clk 0:03:00.1]} 3... a6 {[%clk 0:02:45.7]}
4. c4 {[%clk 0:02:56.1]} 4... Bf5 {[%clk 0:02:45.8]} 5. Nc3 {[%clk 0:02:55]}
5... e6 {[%clk 0:02:46.5]} 6. cxd5 {[%clk 0:02:53]} 6... cxd5 {[%clk 0:02:47.4]}
7. h4 {[%clk 0:02:53.1]} 7... h5 {[%clk 0:02:47]} 8. Nf3 {[%clk 0:02:49.8]} 8...
Nc6 {[%clk 0:02:44.1]} 9. Bd3 {[%clk 0:02:49.6]} 9... Bg4 {[%clk 0:02:39.5]} 10.
Be3 {[%clk 0:02:49.2]} 10... Nge7 {[%clk 0:02:36.9]} 11. O-O {[%clk 0:02:44.9]}
11... Nf5 {[%clk 0:02:36.4]} 12. Bxf5 {[%clk 0:02:44.8]} 12... Bxf5 {[%clk
0:02:36.4]} 13. Bg5 {[%clk 0:02:43.9]} 13... Be7 {[%clk 0:02:36.2]} 14. Na4
{[%clk 0:02:36.5]} 14... Bg4 {[%clk 0:02:29.8]} 15. Bxe7 {[%clk 0:02:33.5]}
15... Qxe7 {[%clk 0:02:30.7]} 16. Rc1 {[%clk 0:02:26.7]} 16... Bxf3 {[%clk
0:02:24.7]} 17. Qxf3 {[%clk 0:02:27.6]} 17... Nxd4 {[%clk 0:02:21.1]} 18. Qe3
{[%clk 0:02:17.8]} 18... Qxh4 {[%clk 0:02:09.6]} 19. Rc7 {[%clk 0:02:07]} 19...
O-O {[%clk 0:01:55.3]} 20. Nb6 {[%clk 0:01:58.6]} 20... Rab8 {[%clk 0:01:50.1]}
21. g3 {[%clk 0:01:41.5]} 21... Qe4 {[%clk 0:01:31.2]} 22. Qxe4 {[%clk
0:01:40.3]} 22... dxe4 {[%clk 0:01:32.1]} 23. Rc4 {[%clk 0:01:38.5]} 23... Nf3+
{[%clk 0:01:30]} 24. Kg2 {[%clk 0:01:33.8]} 24... Nd2 {[%clk 0:01:30.2]} 25. Rd4
{[%clk 0:01:21.4]} 25... Nxf1 {[%clk 0:01:24.9]} 26. Kxf1 {[%clk 0:01:22.3]}
26... Rbd8 {[%clk 0:01:10.8]} 27. Rc4 {[%clk 0:01:22.3]} 27... e3 {[%clk
0:01:07.4]} 28. fxe3 {[%clk 0:01:18.7]} 28... Rd2 {[%clk 0:01:08]} 29. Nc8
{[%clk 0:01:11]} 29... Rxb2 {[%clk 0:01:02.4]} 30. Ne7+ {[%clk 0:01:09.6]} 30...
Kh7 {[%clk 0:01:01.4]} 31. g4 {[%clk 0:01:07]} 31... Rd8 {[%clk 0:01:00.6]} 32.
Ke1 {[%clk 0:01:04.3]} 32... Rd7 {[%clk 0:00:50.4]} 33. Nc8 {[%clk 0:01:03.8]}
33... h4 {[%clk 0:00:48.7]} 34. Nd6 {[%clk 0:01:03.2]} 34... h3 {[%clk
0:00:46.4]} 35. g5 {[%clk 0:01:03.5]} 35... h2 {[%clk 0:00:37.5]} 36. Rh4+
{[%clk 0:01:03.9]} 36... Kg6 {[%clk 0:00:37]} 37. Kf1 {[%clk 0:01:03.9]} 37...
Kxg5 {[%clk 0:00:32.7]} 38. Rh7 {[%clk 0:01:02.6]} 38... Kg6 {[%clk 0:00:31.7]}
39. Rh8 {[%clk 0:01:02.7]} 39... Rxa2 {[%clk 0:00:31.8]} 40. Rh3 {[%clk
0:00:58.9]} 40... Ra1+ {[%clk 0:00:30.1]} 41. Kg2 {[%clk 0:00:58.8]} 41... h1=Q+
{[%clk 0:00:31]} 42. Rxh1 {[%clk 0:00:59.1]} 42... Rxh1 {[%clk 0:00:31.7]} 43.
Kxh1 {[%clk 0:01:00]} 43... Rxd6 {[%clk 0:00:27.1]} 44. exd6 {[%clk 0:01:00.9]}
44... Kf6 {[%clk 0:00:27.6]} 45. e4 {[%clk 0:01:01.1]} 45... e5 {[%clk
0:00:28.2]} 46. Kg2 {[%clk 0:01:01]} 46... Ke6 {[%clk 0:00:28.6]} 47. Kg3 {[%clk
0:01:01.9]} 47... Kxd6 {[%clk 0:00:29.3]} 48. Kg4 {[%clk 0:01:02.4]} 48... a5
{[%clk 0:00:29.7]} 49. Kf5 {[%clk 0:01:03.3]} 49... a4 {[%clk 0:00:29.8]} 50.
Kg5 {[%clk 0:01:04.2]} 50... a3 {[%clk 0:00:30.4]} 51. Kf5 {[%clk 0:01:05.1]}
51... a2 {[%clk 0:00:31.1]} 52. Kg5 {[%clk 0:01:06]} 52... a1=Q {[%clk
0:00:31.6]} 53. Kf5 {[%clk 0:01:06.9]} 53... Qd4 {[%clk 0:00:31.2]} 54. Kg5
{[%clk 0:01:07.8]} 54... Qxe4 {[%clk 0:00:30]} 55. Kh5 {[%clk 0:01:08]} 55...
Qg2 {[%clk 0:00:25.4]} 56. Kh4 {[%clk 0:01:08.1]} 56... f6 {[%clk 0:00:24]} 57.
Kh5 {[%clk 0:01:09]} 57... Qg5# {[%clk 0:00:24.4]} 0-1

[Event "Early-Titled-Tuesday-Blitz-October-03-2023"]
[Site "Chess.com"]
[Date "2023.10.03"]
[Round "9"]
[White "carloseduar100"]
[Black "FERNANDEZL1983"]
[Result "0-1"]
[WhiteElo "2348"]
[BlackElo "2596"]
[TimeControl "180+1"]
[EndTime "9:45:45 PDT"]
[Termination "FERNANDEZL1983 won on time"]

1. d4 {[%clk 0:02:59.3]} 1... Nf6 {[%clk 0:02:58]} 2. Bg5 {[%clk 0:02:58.5]}
2... Ne4 {[%clk 0:02:55.7]} 3. h4 {[%clk 0:02:57.8]} 3... d5 {[%clk 0:02:54.9]}
4. Nd2 {[%clk 0:02:56.4]} 4... h6 {[%clk 0:02:51]} 5. Bf4 {[%clk 0:02:55.6]}
5... Nd6 {[%clk 0:02:46.4]} 6. c3 {[%clk 0:02:55.4]} 6... Nd7 {[%clk 0:02:44.5]}
7. Ngf3 {[%clk 0:02:55.8]} 7... e6 {[%clk 0:02:44.1]} 8. Qc2 {[%clk 0:02:55.9]}
8... c5 {[%clk 0:02:35]} 9. e4 {[%clk 0:02:56]} 9... cxd4 {[%clk 0:02:33.5]} 10.
exd5 {[%clk 0:02:54.6]} 10... exd5 {[%clk 0:02:33.4]} 11. Nxd4 {[%clk
0:02:52.9]} 11... Nf6 {[%clk 0:02:31.6]} 12. O-O-O {[%clk 0:02:48]} 12... Be7
{[%clk 0:02:32]} 13. Bxd6 {[%clk 0:02:14.4]} 13... Qxd6 {[%clk 0:02:29.1]} 14.
Nf5 {[%clk 0:02:14.6]} 14... Bxf5 {[%clk 0:02:27.5]} 15. Qxf5 {[%clk 0:02:15.5]}
15... O-O {[%clk 0:02:25.2]} 16. h5 {[%clk 0:02:04.6]} 16... Rfc8 {[%clk
0:02:20.7]} 17. Bd3 {[%clk 0:02:04.3]} 17... d4 {[%clk 0:02:16.8]} 18. Ne4
{[%clk 0:01:58.7]} 18... Nxe4 {[%clk 0:02:11.9]} 19. Bxe4 {[%clk 0:01:59.6]}
19... Bg5+ {[%clk 0:02:03.1]} 20. Kb1 {[%clk 0:01:57.8]} 20... Qf4 {[%clk
0:01:59.7]} 21. Qh7+ {[%clk 0:01:48.9]} 21... Kf8 {[%clk 0:01:59.2]} 22. Rxd4
{[%clk 0:01:49.3]} 22... Rd8 {[%clk 0:01:50.1]} 23. Bd5 {[%clk 0:01:19.2]} 23...
Qf6 {[%clk 0:01:18.8]} 24. Qh8+ {[%clk 0:01:16.4]} 24... Ke7 {[%clk 0:01:18]}
25. Re1+ {[%clk 0:01:17.3]} 25... Kd6 {[%clk 0:01:15.8]} 26. Qh7 {[%clk
0:01:00.3]} 26... Kc7 {[%clk 0:01:10.4]} 27. Qe4 {[%clk 0:00:55.9]} 27... Re8
{[%clk 0:01:05.7]} 28. Rc4+ {[%clk 0:00:50.2]} 28... Kd6 {[%clk 0:01:05.5]} 29.
Qxe8 {[%clk 0:00:07.4]} 29... Rxe8 {[%clk 0:01:04.8]} 30. Rxe8 {[%clk
0:00:08.3]} 30... Kxd5 {[%clk 0:01:05.1]} 31. Rd4+ {[%clk 0:00:08.8]} 31... Kc6
{[%clk 0:00:55.7]} 32. Rc8+ {[%clk 0:00:08.6]} 32... Kb5 {[%clk 0:00:53.8]} 33.
Rb4+ {[%clk 0:00:08.9]} 33... Ka5 {[%clk 0:00:53.5]} 34. Rc5+ {[%clk 0:00:08]}
34... Ka6 {[%clk 0:00:53.7]} 0-1

[Event "Early-Titled-Tuesday-Blitz-October-03-2023"]
[Site "Chess.com"]
[Date "2023.10.03"]
[Round "9"]
[White "andrzej"]
[Black "Vesper2018"]
[Result "0-1"]
[WhiteElo "2459"]
[BlackElo "2583"]
[TimeControl "180+1"]
[EndTime "9:45:45 PDT"]
[Termination "Vesper2018 won by checkmate"]

1. e4 {[%clk 0:02:58.2]} 1... c5 {[%clk 0:02:59.7]} 2. Nf3 {[%clk 0:02:57.9]}
2... d6 {[%clk 0:03:00.4]} 3. d4 {[%clk 0:02:58.3]} 3... cxd4 {[%clk 0:03:00.6]}
4. Nxd4 {[%clk 0:02:59.2]} 4... Nf6 {[%clk 0:03:01.1]} 5. Nc3 {[%clk 0:02:59.8]}
5... a6 {[%clk 0:03:01.7]} 6. Be3 {[%clk 0:03:00.4]} 6... e5 {[%clk 0:03:01.2]}
7. Nb3 {[%clk 0:03:00.9]} 7... Be6 {[%clk 0:03:01]} 8. h3 {[%clk 0:03:01.3]}
8... Be7 {[%clk 0:02:56.3]} 9. Qf3 {[%clk 0:03:00.6]} 9... O-O {[%clk
0:02:55.7]} 10. O-O-O {[%clk 0:03:00.7]} 10... b5 {[%clk 0:02:54.1]} 11. g4
{[%clk 0:03:01]} 11... b4 {[%clk 0:02:54]} 12. Nd5 {[%clk 0:03:01.5]} 12... Nxd5
{[%clk 0:02:54.6]} 13. exd5 {[%clk 0:03:01.7]} 13... Bc8 {[%clk 0:02:55.3]} 14.
Kb1 {[%clk 0:02:50.8]} 14... a5 {[%clk 0:02:54.7]} 15. Nd2 {[%clk 0:02:51.1]}
15... f5 {[%clk 0:02:37.7]} 16. gxf5 {[%clk 0:02:44]} 16... Bxf5 {[%clk
0:02:37.8]} 17. Qg2 {[%clk 0:02:26.2]} 17... Nd7 {[%clk 0:02:32]} 18. Rg1 {[%clk
0:02:25.3]} 18... Rf7 {[%clk 0:02:30.5]} 19. Bd3 {[%clk 0:02:22.8]} 19... g6
{[%clk 0:01:52.6]} 20. Ne4 {[%clk 0:02:00.3]} 20... a4 {[%clk 0:01:49.8]} 21.
Ng5 {[%clk 0:01:51.5]} 21... Bxg5 {[%clk 0:01:47]} 22. Bxg5 {[%clk 0:01:51.2]}
22... Qc7 {[%clk 0:01:35.2]} 23. Bxf5 {[%clk 0:01:42.5]} 23... Rxf5 {[%clk
0:01:34.9]} 24. Qg4 {[%clk 0:01:36.1]} 24... Rxf2 {[%clk 0:01:10.6]} 25. Qe6+
{[%clk 0:01:31.7]} 25... Kh8 {[%clk 0:01:09.7]} 26. Rc1 {[%clk 0:01:15]} 26...
a3 {[%clk 0:01:07.6]} 27. Rgf1 {[%clk 0:00:58.4]} 27... Raf8 {[%clk 0:01:04.9]}
28. Rxf2 {[%clk 0:00:53.5]} 28... Rxf2 {[%clk 0:01:04.7]} 29. Qe8+ {[%clk
0:00:28.1]} 29... Nf8 {[%clk 0:00:57.7]} 30. Bd8 {[%clk 0:00:04.9]} 30... Qg7
{[%clk 0:00:49.3]} 31. b3 {[%clk 0:00:01.5]} 31... e4 {[%clk 0:00:47.8]} 32. c3
{[%clk 0:00:02]} 32... bxc3 {[%clk 0:00:43.4]} 33. Rc2 {[%clk 0:00:01]} 33...
Rf1+ {[%clk 0:00:42.2]} 34. Rc1 {[%clk 0:00:01.7]} 34... c2+ {[%clk 0:00:42.8]}
35. Kxc2 {[%clk 0:00:02.2]} 35... Qb2# {[%clk 0:00:42.8]} 0-1

[Event "Early-Titled-Tuesday-Blitz-October-03-2023"]
[Site "Chess.com"]
[Date "2023.10.03"]
[Round "9"]
[White "JoseRemolar"]
[Black "QuintilianoR"]
[Result "0-1"]
[WhiteElo "2472"]
[BlackElo "2663"]
[TimeControl "180+1"]
[EndTime "9:45:48 PDT"]
[Termination "QuintilianoR won on time"]

1. e4 {[%clk 0:03:00.9]} 1... c5 {[%clk 0:02:56.8]} 2. Nf3 {[%clk 0:03:01.1]}
2... d6 {[%clk 0:02:55.3]} 3. d4 {[%clk 0:03:01]} 3... cxd4 {[%clk 0:02:56.2]}
4. Nxd4 {[%clk 0:03:01.6]} 4... Nf6 {[%clk 0:02:56.4]} 5. Nc3 {[%clk 0:03:01.9]}
5... a6 {[%clk 0:02:56.9]} 6. Bc4 {[%clk 0:03:00.1]} 6... e6 {[%clk 0:02:50.4]}
7. Bb3 {[%clk 0:03:00.2]} 7... b5 {[%clk 0:02:43.5]} 8. Be3 {[%clk 0:02:52.9]}
8... Be7 {[%clk 0:02:31.4]} 9. f3 {[%clk 0:02:02.5]} 9... O-O {[%clk 0:02:13.5]}
10. g4 {[%clk 0:01:59.6]} 10... b4 {[%clk 0:01:56.9]} 11. Nce2 {[%clk
0:01:55.3]} 11... Bd7 {[%clk 0:01:38.8]} 12. Qd2 {[%clk 0:01:52.9]} 12... Nc6
{[%clk 0:01:27.4]} 13. g5 {[%clk 0:01:43.2]} 13... Nxd4 {[%clk 0:01:27.1]} 14.
Nxd4 {[%clk 0:01:25.3]} 14... Nh5 {[%clk 0:01:26.9]} 15. f4 {[%clk 0:01:14.1]}
15... g6 {[%clk 0:01:19.9]} 16. O-O-O {[%clk 0:00:58.9]} 16... a5 {[%clk
0:01:08.1]} 17. f5 {[%clk 0:00:59.4]} 17... a4 {[%clk 0:00:59.4]} 18. Bc4 {[%clk
0:00:55]} 18... Qc7 {[%clk 0:00:46.1]} 19. Be2 {[%clk 0:00:45.2]} 19... b3
{[%clk 0:00:35.8]} 20. a3 {[%clk 0:00:41]} 20... bxc2 {[%clk 0:00:29.3]} 21.
Qxc2 {[%clk 0:00:24.5]} 21... Qb7 {[%clk 0:00:28.4]} 22. Kb1 {[%clk 0:00:25.1]}
22... Rfc8 {[%clk 0:00:17.4]} 23. Qd3 {[%clk 0:00:25.4]} 23... Rab8 {[%clk
0:00:16.9]} 24. Rd2 {[%clk 0:00:24.9]} 24... e5 {[%clk 0:00:15.7]} 25. Nf3
{[%clk 0:00:08.2]} 25... Bc6 {[%clk 0:00:15.9]} 0-1